bitfinex/quotes_ETHUSD_20250511
["timestamp","ask_amount","ask_price","bid_price","bid_amount"]
[1746983152271,3.77151713,2469.8,2469.7,2.753]
[1746983152411,4.00386199,2469.8,2469.7,2.753]
[1746983152611,4.40424819,2469.8,2469.7,2.753]
[1746983154211,5.16714819,2469.8,2469.2,8.0]
[1746983154451,5.16714819,2469.8,2469.3,2.754]
[1746983154638,5.16714819,2469.8,2469.2,10.754]
[1746983154958,3.77151713,2469.5,2469.2,2.754]
[1746983155155,3.77151713,2469.5,2469.1,0.05]
[1746983155453,0.51671482,2469.7,2469.1,0.05]
[1746983155454,3.77151713,2469.2,2469.1,0.05]
[1746983155814,4.00361507,2469.2,2469.1,0.05]
[1746983161589,0.55,2469.0,2467.7,0.7666]
[1746983161760,3.77151713,2468.2,2467.7,3.5206]
[1746983162339,4.0005024,2468.2,2467.7,2.754]
[1746983163652,4.0005024,2468.2,2467.8,8.0]
[1746983163973,4.0005024,2468.2,2467.7,2.754]
[1746983164578,4.0005024,2468.2,2467.8,8.0]
[1746983164748,0.22898527,2468.2,2467.8,8.04052023]
[1746983164955,0.22898527,2468.2,2467.8,8.0]
[1746983165272,3.99121099,2468.2,2467.8,8.0]
[1746983167977,5.18873209,2468.2,2467.8,8.0]
[1746983168862,5.73873209,2468.2,2467.4,0.7666]
[1746983169079,3.77151713,2467.5,2467.2,5.89]
[1746983169377,0.21435412,2467.4,2467.1,0.05]
[1746983169566,3.77151713,2467.2,2467.1,0.05]
[1746983170274,3.98587125,2467.2,2467.1,0.05]
[1746983170481,4.38445838,2467.2,2467.1,0.05]
[1746983171581,0.7997,2467.1,2466.5,2.755]
[1746983171746,3.77151713,2466.8,2466.6,8.0]
[1746983171945,3.77151713,2466.8,2466.5,2.755]
[1746983172481,0.21049452,2466.7,2466.6,8.0]
[1746983172669,3.77151713,2466.8,2466.6,8.0]
[1746983172895,0.20935597,2466.7,2466.6,8.0]
[1746983173094,3.77151713,2466.8,2466.6,8.0]
[1746983173298,0.20935597,2466.7,2466.6,8.0]
[1746983173499,4.02133466,2467.0,2466.6,8.0]
[1746983173693,0.20198252,2466.9,2466.6,8.48411359]
[1746983173894,4.02133466,2467.3,2466.6,9.29471359]
[1746983174100,0.20198252,2467.2,2466.6,12.04771359]
[1746983174272,0.20198252,2467.2,2466.6,12.00717421]
[1746983175907,0.20198252,2467.2,2466.6,17.89717421]
[1746983177509,0.20198252,2467.2,2466.7,2.06521742]
[1746983177711,0.20198252,2467.2,2466.8,0.04053227]
[1746983177921,4.02133466,2467.6,2466.8,0.04053227]
[1746983178223,0.20322019,2467.5,2467.0,8.0]
[1746983178397,0.20322019,2467.5,2467.2,8.0]
[1746983178716,0.20391317,2467.4,2467.2,8.0]
[1746983178918,4.02133466,2467.6,2467.2,8.0]
[1746983179216,0.20391317,2467.5,2467.2,8.0]
[1746983180206,0.20391317,2467.5,2467.2,15.00592845]
[1746983180385,0.20391317,2467.5,2467.2,14.9654]
[1746983181498,4.02133466,2467.3,2467.2,13.89]
[1746983181825,4.22658408,2467.3,2467.2,13.89]
[1746983182397,4.22658408,2467.3,2467.1,2.754]
[1746983182597,0.813,2467.2,2466.5,5.89]
[1746983182799,4.02133466,2466.6,2466.1,2.804]
[1746983183014,4.02133466,2466.2,2466.1,0.05]
[1746983183341,4.22376277,2466.2,2466.1,0.05]
[1746983185345,4.77376277,2466.2,2466.1,0.05]
[1746983185511,4.22376277,2466.2,2466.1,0.05]
[1746983189864,4.77376277,2466.2,2466.1,0.05]
[1746983190065,6.46729856,2466.2,2466.1,0.05]
[1746983190365,9.22129856,2466.2,2466.1,0.05]
[1746983190566,4.02133466,2465.7,2465.2,2.755]
[1746983190861,4.83203466,2465.7,2465.3,8.0]
[1746983191038,4.02133466,2465.4,2465.2,2.755]
[1746983191247,4.02133466,2465.4,2465.3,8.0]
[1746983192267,0.8107,2465.7,2465.3,8.0]
[1746983192268,4.83203466,2465.7,2465.3,8.0]
[1746983192577,4.02133466,2465.7,2465.3,8.0]
[1746983192962,0.19633683,2465.6,2465.3,8.0]
[1746983195254,3.98502995,2465.6,2465.3,8.0]
[1746983195684,3.98502995,2465.6,2465.1,0.05]
[1746983195685,0.7587,2465.5,2465.1,0.05]
[1746983195870,3.78869312,2465.3,2465.1,0.05]
[1746983196273,0.19480097,2465.2,2465.1,0.05]
[1746983196600,3.78869312,2465.3,2465.1,0.05]
[1746983196894,0.19480097,2465.2,2465.1,0.05]
[1746983197101,4.24343243,2465.3,2465.1,0.05]
[1746983197306,0.19480097,2465.2,2465.1,0.05]
[1746983197529,4.24343243,2465.3,2465.1,0.05]
[1746983197705,0.19480097,2465.2,2465.1,0.05]
[1746983197995,3.78869312,2465.3,2465.1,0.05]
[1746983198194,0.7587,2465.9,2465.1,0.05]
[1746983198195,3.78869312,2465.8,2465.2,0.7804]
[1746983198498,4.24343243,2465.8,2465.2,0.82095995]
[1746983199686,4.24343243,2465.8,2465.2,0.7804]
[1746983200202,3.78869312,2465.5,2465.2,0.7804]
[1746983202898,3.78869312,2465.5,2465.1,8.05]
[1746983203520,4.24343243,2465.8,2465.2,0.04056256]
[1746983203698,0.18826007,2465.7,2465.2,0.04056256]
[1746983204223,3.78869312,2465.5,2465.1,8.05]
[1746983204590,0.18801225,2465.4,2465.1,8.05]
[1746983204790,0.18801225,2465.4,2465.1,8.09056288]
[1746983205090,3.78869312,2465.6,2465.1,10.07709629]
[1746983205293,0.18801225,2465.5,2465.1,10.07709629]
[1746983206111,3.78869312,2465.9,2465.2,0.7884]
[1746983206397,0.18796268,2465.8,2465.3,0.04055828]
[1746983207533,0.18796268,2465.8,2465.4,0.7712]
[1746983207703,3.78869312,2466.1,2465.5,0.0405525]
[1746983207894,0.18910258,2466.0,2465.7,8.0]
[1746983208342,3.78869312,2466.1,2465.7,8.0]
[1746983209146,3.78869312,2466.4,2465.8,0.7545]
[1746983209331,0.65535379,2466.3,2465.8,0.7545]
[1746983210017,0.65535379,2466.3,2465.8,0.79505025]
[1746983210222,0.19336448,2466.3,2465.8,0.79505025]
[1746983211208,3.78869312,2466.1,2465.8,0.7545]
[1746983211407,3.78869312,2466.1,2465.7,8.0]
[1746983211610,0.84519694,2468.3,2465.8,5.5565]
[1746983211860,5.07383324,2468.2,2466.7,2.975]
[1746983212147,0.21144846,2468.3,2468.2,0.7545]
[1746983212308,0.05,2468.4,2468.3,8.0]
[1746983212504,0.05,2468.4,2468.3,9.48479377]
[1746983212738,0.05,2468.4,2468.3,9.44429258]
[1746983212947,0.05,2468.4,2468.3,8.0]
[1746983213129,0.05,2468.4,2468.3,54.26026143]
[1746983213355,0.05,2468.4,2468.3,32.500273]
[1746983213871,0.05,2468.4,2468.3,33.80838304]
[1746983214155,0.05,2468.4,2468.3,13.28514004]
[1746983214649,0.05,2468.4,2468.3,14.04404004]
[1746983215362,4.77529469,2469.6,2468.8,1.52566431]
[1746983215529,4.77529469,2469.6,2468.9,5.61949822]
[1746983215851,4.77529469,2469.6,2469.0,8.0]
[1746983217447,4.01399469,2470.1,2469.2,8.0]
[1746983217649,4.01399469,2470.1,2469.3,0.04049214]
[1746983218278,4.01399469,2470.1,2469.3,24.87116714]
[1746983218469,4.01399469,2470.1,2469.3,20.682566]
[1746983219274,4.01399469,2470.1,2469.3,21.503266]
[1746983219428,0.05,2470.4,2469.3,24.2035926]
[1746983219626,0.05,2470.4,2469.7,0.55]
[1746983219832,0.05,2470.4,2469.9,8.8031]
[1746983220045,0.05,2470.4,2470.0,0.04047225]
[1746983220440,0.05,2470.4,2469.9,8.8031]
[1746983220665,0.05,2470.4,2470.1,8.0]
[1746983220891,0.05,2470.4,2470.3,8.0]
[1746983221079,0.05,2470.4,2470.3,31.395559]
[1746983221255,0.05,2470.4,2470.3,12.69904]
[1746983221461,0.05,2470.4,2470.3,4.95787937]
[1746983221686,0.05,2470.4,2470.3,6.25366731]
[1746983221989,0.05,2470.4,2470.3,4.95787937]
[1746983222396,0.05,2470.4,2470.3,5.50787937]
[1746983222604,0.05,2472.4,2470.7,2.09122972]
[1746983222754,0.05,2473.4,2471.5,2.00794925]
[1746983222958,0.05,2473.4,2472.7,0.55]
[1746983223156,0.05,2473.4,2473.0,0.55]
[1746983223389,0.05,2473.4,2473.2,8.55]
[1746983223593,0.05,2473.4,2473.3,54.17256167]
[1746983223799,0.05,2473.4,2473.3,58.48596055]
[1746983223981,0.05,2473.4,2473.3,57.17785051]
[1746983224292,0.05,2473.4,2473.3,57.25178296]
[1746983224492,0.05,2473.4,2473.3,50.47204196]
[1746983224681,0.05,2473.4,2473.3,48.43971696]
[1746983225262,0.05,2473.4,2473.3,52.91396596]
[1746983225562,0.05,2473.4,2473.3,46.56396596]
[1746983225763,0.05,2473.4,2473.3,16.98271445]
[1746983225966,0.05,2473.4,2473.3,8.89463245]
[1746983226166,0.05,2473.4,2473.0,2.875]
[1746983226818,4.01399469,2473.3,2472.3,14.561]
[1746983226982,4.01399469,2473.0,2472.4,5.8]
[1746983227179,0.25799222,2472.9,2472.4,5.8]
[1746983227370,0.25799222,2472.9,2472.5,0.04044032]
[1746983227706,0.25415292,2472.8,2472.4,5.8]
[1746983228094,4.01399469,2472.6,2472.2,2.875]
[1746983228301,4.01399469,2472.3,2472.2,2.875]
[1746983228522,4.56399469,2472.9,2472.2,10.875]
[1746983228723,0.23550154,2472.8,2472.2,2.875]
[1746983228920,0.23550154,2472.8,2472.3,8.0404462]
[1746983229219,4.01399469,2473.2,2472.3,8.0]
[1746983229429,0.22881592,2472.7,2472.4,5.89]
[1746983229636,4.01399469,2472.6,2472.0,2.874]
[1746983229839,4.01399469,2472.3,2472.0,2.874]
[1746983230049,0.05,2475.4,2474.0,46.172372]
[1746983230335,0.05,2475.4,2474.2,8.0]
[1746983230536,4.06399469,2475.4,2474.3,11.9123]
[1746983230744,4.06399469,2475.4,2474.3,12.622692]
[1746983231035,0.05,2475.4,2474.3,13.172692]
[1746983231195,0.05,2475.4,2474.3,15.14755223]
[1746983231392,0.05,2475.4,2474.3,21.4634548]
[1746983231930,0.05,2475.4,2474.3,19.4557928]
[1746983232335,0.05,2475.4,2474.3,36.9657348]
[1746983232840,0.05,2475.4,2474.4,8.55]
[1746983233039,0.05,2475.4,2474.6,8.55]
[1746983233431,0.05,2475.4,2474.7,1.31702671]
[1746983233760,0.05,2475.4,2474.8,6.245]
[1746983233962,0.05,2475.4,2474.9,8.0]
[1746983234164,0.05,2475.4,2475.0,0.04039106]
[1746983234364,0.05,2475.4,2475.0,1.46893017]
[1746983234668,0.05,2475.4,2475.1,0.55]
[1746983234964,0.05,2475.4,2475.3,0.8146]
[1746983235258,0.05,2475.4,2475.3,22.545417]
[1746983235460,0.05,2475.4,2475.3,37.222877]
[1746983235658,0.05,2475.4,2475.3,53.92593586]
[1746983235860,0.05,2475.4,2475.3,33.58334349]
[1746983236019,0.05,2475.4,2475.3,16.41190298]
[1746983236219,0.05,2475.4,2475.3,15.59730298]
[1746983237132,0.05,2475.4,2475.3,38.83854298]
[1746983237465,0.05,2475.4,2475.3,15.59730298]
[1746983237647,0.05,2475.4,2475.3,18.87015898]
[1746983237849,0.05,2475.4,2475.3,18.93881888]
[1746983238232,0.05,2475.4,2475.3,22.51669988]
[1746983238768,0.05,2475.4,2475.3,18.93881888]
[1746983238971,0.05,2475.4,2475.3,33.82077788]
[1746983239477,0.05,2475.4,2475.3,17.06884888]
[1746983239691,0.05,2475.4,2475.3,4.68581888]
[1746983239848,0.8199,2475.3,2474.5,3.098]
[1746983240377,0.22561281,2475.2,2474.6,8.04040486]
[1746983240597,0.8199,2475.3,2474.6,8.04040486]
[1746983240598,0.8199,2475.3,2474.6,0.04040486]
[1746983240775,0.8199,2475.3,2474.6,1.0834859]
[1746983241072,0.8199,2475.3,2474.6,9.50163449]
[1746983241633,0.8199,2475.3,2474.6,9.0834859]
[1746983242168,0.8199,2475.3,2474.6,1.0834859]
[1746983242382,0.22112839,2475.2,2474.6,1.0834859]
[1746983242539,0.55,2475.1,2474.6,1.0834859]
[1746983243073,0.55,2474.9,2474.6,1.0834859]
[1746983243478,0.2192548,2474.8,2474.6,1.0834859]
[1746983244196,0.2192548,2474.8,2473.7,3.098]
[1746983244197,1.3768,2474.7,2473.7,3.098]
[1746983244424,1.3768,2474.7,2473.2,3.098]
[1746983244425,0.55,2474.4,2473.2,3.098]
[1746983244548,0.63794281,2474.4,2473.3,0.35022281]
[1746983244950,0.20934579,2474.3,2473.3,0.35022281]
[1746983245151,0.8268,2474.7,2473.4,0.55]
[1746983245406,0.20934579,2474.6,2473.6,8.0]
[1746983245715,0.20934579,2474.6,2473.6,3.15]
[1746983245898,0.20934579,2474.6,2473.7,0.04041534]
[1746983246099,0.8268,2474.7,2473.8,3.098]
[1746983246299,0.8268,2475.3,2473.9,0.87331204]
[1746983246807,0.20934579,2475.2,2474.0,0.55]
[1746983246950,0.20934579,2475.2,2474.2,0.55]
[1746983247151,0.05,2475.4,2474.4,8.55]
[1746983247392,0.05,2475.4,2474.7,0.8329]
[1746983247592,0.05,2475.4,2474.8,0.04039152]
[1746983247800,0.05,2475.4,2474.9,3.20839309]
[1746983248904,0.8268,2479.0,2477.1,0.8329]
[1746983249109,6.44688231,2479.0,2477.2,11.84901588]
[1746983249259,6.44688231,2479.0,2477.3,4.24092405]
[1746983249458,0.8268,2479.0,2477.2,6.888]
[1746983249791,0.8268,2479.0,2477.3,16.42715682]
[1746983249792,5.62508231,2478.8,2477.3,16.42715682]
[1746983250088,0.005,2478.8,2477.3,18.41918368]
[1746983251155,0.005,2478.8,2477.3,20.84418368]
[1746983251356,0.005,2478.8,2477.4,8.55]
[1746983251591,0.005,2478.8,2477.4,8.0]
[1746983251771,0.005,2478.8,2477.5,0.04034314]
[1746983251994,0.005,2478.8,2477.6,0.55]
[1746983252196,0.005,2478.8,2477.5,1.22583488]
[1746983252414,0.005,2478.8,2477.9,0.55]
[1746983252586,0.005,2478.8,2478.4,0.7833]
[1746983252787,0.005,2478.8,2478.6,8.0]
[1746983253087,0.005,2478.8,2478.7,24.36349837]
[1746983253307,0.005,2478.8,2478.7,27.07253489]
[1746983253517,0.005,2478.8,2478.7,25.43585089]
[1746983253692,0.005,2478.8,2478.7,25.98585089]
[1746983254498,0.055,2479.4,2478.9,0.55]
[1746983254836,0.055,2479.4,2478.8,8.7674]
[1746983254837,0.055,2479.4,2479.0,0.93174]
[1746983254989,0.055,2479.4,2479.1,0.55]
[1746983255189,0.055,2479.4,2479.2,0.04031915]
[1746983255394,0.055,2479.4,2479.3,15.183]
[1746983256522,0.055,2479.4,2478.7,2.15386169]
[1746983256824,8.0,2478.9,2477.8,0.7674]
[1746983257028,1.36200823,2478.8,2477.9,0.18999999]
[1746983257215,0.7613,2479.2,2478.0,0.04034151]
[1746983257391,0.20028858,2479.1,2478.1,3.662]
[1746983257724,0.20028858,2479.1,2478.2,3.662]
[1746983257925,8.0,2478.5,2478.0,1.14399346]
[1746983258128,1.36200823,2478.4,2478.0,1.14399346]
[1746983258421,0.20142088,2478.3,2478.0,1.14399346]
[1746983259789,0.7528,2478.2,2478.0,1.14399346]
[1746983259989,8.19718597,2478.1,2478.0,0.7864955]
[1746983260825,8.74718597,2478.1,2478.0,0.6864955]
[1746983260991,14.69806178,2478.1,2478.0,0.6864955]
[1746983261425,10.11271212,2478.1,2478.0,0.6864955]
[1746983262028,0.19718597,2478.1,2478.0,0.6864955]
[1746983262632,0.7528,2478.7,2478.0,0.6864955]
[1746983262633,8.7528,2479.3,2478.0,0.6864955]
[1746983262926,0.7528,2479.3,2478.0,0.6864955]
[1746983263125,5.62008231,2479.1,2478.1,0.04034159]
[1746983263330,5.62008231,2479.1,2478.0,0.6864955]
[1746983263633,0.76121742,2479.0,2478.0,0.6864955]
[1746983264407,8.76121742,2479.0,2478.0,0.6864955]
[1746983264601,8.76121742,2479.0,2478.1,3.647]
[1746983264800,8.76121742,2479.0,2478.2,3.662]
[1746983265014,8.76121742,2479.0,2478.2,4.262]
[1746983265205,1.43812997,2478.9,2478.2,4.262]
[1746983265713,0.18109926,2478.8,2478.2,4.262]
[1746983267106,0.7663,2478.5,2478.2,0.6]
[1746983267307,0.7663,2478.5,2478.0,0.6864955]
[1746983267528,0.18026226,2478.4,2478.0,0.6864955]
[1746983267824,5.62008231,2478.3,2478.0,0.6864955]
[1746983268032,0.55,2478.2,2478.0,0.6864955]
[1746983268221,12.58534966,2478.1,2478.0,0.6864955]
[1746983268525,8.18026226,2478.1,2478.0,0.6864955]
[1746983269031,8.73026226,2478.1,2478.0,0.6864955]
[1746983269323,9.82933034,2478.1,2478.0,0.6864955]
[1746983269724,13.86468,2478.1,2478.0,0.6864955]
[1746983269927,12.58564198,2478.0,2477.1,3.661]
[1746983270116,8.0,2477.8,2477.1,3.661]
[1746983270496,0.55,2478.0,2477.1,3.661]
[1746983270695,0.17848835,2477.7,2477.1,3.661]
[1746983270930,0.55,2477.8,2477.1,3.661]
[1746983271132,0.17848835,2477.6,2477.1,3.661]
[1746983271335,0.55,2477.8,2477.1,3.661]
[1746983271536,0.17848835,2477.5,2477.1,3.661]
[1746983271828,0.55,2477.8,2477.1,3.661]
[1746983271829,0.17848835,2477.4,2477.1,3.661]
[1746983272231,0.67502005,2477.7,2477.3,0.6]
[1746983272595,0.67502005,2477.7,2477.1,3.661]
[1746983274209,0.55,2477.6,2477.1,3.661]
[1746983274559,0.55,2477.4,2477.1,3.661]
[1746983274710,0.55,2477.4,2475.9,14.52]
[1746983274711,12.58695248,2477.2,2475.9,4.4734]
[1746983274905,0.55,2477.2,2475.9,4.4734]
[1746983275111,0.55,2477.2,2476.1,0.09037786]
[1746983277061,0.8275,2477.5,2476.1,0.05]
[1746983277213,6.20020047,2477.9,2476.3,0.8114]
[1746983277214,1.40761816,2477.9,2476.3,0.8114]
[1746983277411,0.8275,2477.9,2476.4,0.04036516]
[1746983277616,0.55,2477.8,2476.6,8.0]
[1746983277846,0.55,2477.8,2476.8,8.0]
[1746983278148,4.5859676,2477.8,2476.7,3.662]
[1746983278312,0.55,2477.6,2476.7,3.662]
[1746983278635,0.45860187,2477.5,2476.7,3.662]
[1746983278832,0.55,2477.2,2476.1,0.05]
[1746983279051,4.58689708,2477.2,2476.1,3.712]
[1746983279215,0.55,2477.2,2476.2,8.0]
[1746983279844,0.55,2477.2,2476.1,3.712]
[1746983280144,0.53430387,2477.1,2476.1,3.712]
[1746983280451,0.55,2477.2,2476.1,3.712]
[1746983281158,8.55,2477.2,2476.1,3.712]
[1746983281357,0.55,2476.8,2476.1,3.712]
[1746983281520,1.3063,2476.8,2476.1,3.712]
[1746983282451,1.3063,2476.8,2476.1,0.05]
[1746983282657,0.55,2476.6,2476.1,0.05]
[1746983282856,0.45877747,2476.5,2476.1,0.05]
[1746983283359,0.7563,2476.8,2476.1,0.05]
[1746983284219,0.15017554,2476.7,2476.1,0.05]
[1746983285559,0.8303,2478.7,2476.3,0.55]
[1746983285859,0.8303,2479.3,2477.6,8.8096]
[1746983286059,0.8303,2479.3,2477.8,8.55]
[1746983286219,0.8303,2479.3,2477.9,0.72326853]
[1746983286558,0.8303,2479.3,2477.9,0.68293089]
[1746983286715,0.8303,2479.3,2477.9,0.0403387]
[1746983286916,0.13766091,2479.2,2477.9,0.72326959]
[1746983287255,0.13766091,2479.2,2478.0,0.87232696]
[1746983287454,0.13766091,2479.2,2478.2,8.0]
[1746983287644,0.8303,2479.3,2478.3,0.0403383]
[1746983287847,0.8303,2479.3,2478.5,8.0]
[1746983288044,0.14723241,2479.2,2478.6,0.04033831]
[1746983288355,0.8303,2479.3,2478.6,0.04033831]
[1746983288558,0.767,2479.8,2478.6,0.81543831]
[1746983289058,0.15828276,2479.3,2478.6,0.81543831]
[1746983289525,0.15828276,2479.3,2478.6,0.04033831]
[1746983289724,0.15828276,2479.3,2478.5,8.0]
[1746983289943,0.15828276,2479.3,2478.5,8.04033569]
[1746983290751,0.15828276,2479.3,2478.5,8.0]
[1746983290950,0.767,2479.2,2478.5,8.0]
[1746983291155,0.15813489,2479.1,2478.5,8.04034251]
[1746983291662,0.15813489,2479.1,2478.5,0.04034251]
[1746983291827,0.15813489,2479.1,2478.3,0.0403425]
[1746983292734,0.15813489,2479.1,2478.2,7.077]
[1746983292936,0.15813489,2479.1,2478.3,0.0403425]
[1746983294222,0.005,2478.6,2478.3,0.0403425]
[1746983294423,0.005,2478.6,2478.3,8.0403425]
[1746983294633,0.005,2478.6,2478.3,8.0]
[1746983294862,0.005,2478.6,2478.2,3.531]
[1746983295228,0.15626164,2478.5,2478.3,8.0]
[1746983295725,0.15626164,2478.5,2478.0,8.0]
[1746983295925,0.005,2478.6,2478.4,0.6]
[1746983296226,0.15626164,2478.5,2478.4,0.6]
[1746983298068,0.005,2478.6,2478.4,0.64034265]
[1746983298367,0.005,2478.6,2478.5,8.0]
[1746983298574,0.005,2478.6,2478.5,0.04034245]
[1746983299235,0.005,2478.6,2478.5,8.04034245]
[1746983299434,0.005,2478.6,2478.5,8.0]
[1746983299682,0.005,2478.6,2478.4,0.6]
[1746983299864,0.005,2478.6,2478.3,5.93034244]
[1746983300076,0.005,2478.6,2478.5,8.0]
[1746983300372,0.005,2478.6,2478.5,35.035917]
[1746983300572,0.005,2478.6,2478.5,35.71884789]
[1746983300728,0.005,2478.6,2478.5,34.77864289]
[1746983300925,0.005,2478.6,2478.5,34.095712]
[1746983301171,0.055,2479.4,2478.8,8.0]
[1746983301384,0.055,2479.4,2479.0,8.0]
[1746983301531,0.055,2479.4,2479.1,0.04033102]
[1746983302572,0.055,2479.4,2479.1,5.885]
[1746983302728,0.055,2479.4,2479.2,0.04032138]
[1746983302929,0.055,2479.4,2479.3,15.027]
[1746983303130,0.055,2479.4,2479.3,15.8428]
[1746983303386,0.055,2479.4,2479.3,82.933406]
[1746983303530,0.055,2479.4,2479.3,83.61633689]
[1746983304276,0.005,2480.1,2479.4,8.55]
[1746983304429,0.005,2480.1,2479.6,8.0]
[1746983304635,0.005,2480.1,2479.8,8.0]
[1746983304832,0.005,2480.1,2480.0,8.7656]
[1746983305166,0.005,2480.1,2480.0,38.508712]
[1746983305854,0.005,2480.1,2479.5,4.86782751]
[1746983306162,0.005,2480.1,2479.9,3.53]
[1746983306370,0.005,2480.1,2480.0,8.04031737]
[1746983306552,0.005,2480.1,2480.0,14.61869437]
[1746983306753,0.005,2480.1,2480.0,8.0]
[1746983306954,0.005,2480.1,2480.0,10.30261966]
[1746983307264,0.005,2480.1,2480.0,7.625]
[1746983307470,0.005,2480.1,2479.5,7.029]
[1746983307655,0.8046,2480.0,2479.1,14.516]
[1746983307964,0.16039316,2479.9,2479.2,0.04033105]
[1746983308310,0.16039316,2479.9,2479.1,14.516]
[1746983308562,0.81772,2479.9,2479.1,14.516]
[1746983308928,6.1532752,2479.7,2478.2,0.7736]
[1746983309127,0.7802,2479.5,2478.3,7.028]
[1746983309325,0.7802,2479.5,2478.4,0.04034068]
[1746983309530,0.16039316,2479.4,2478.5,3.529]
[1746983309854,0.16039316,2479.4,2478.6,0.04033792]
[1746983310367,0.7802,2479.2,2478.0,14.509]
[1746983310570,0.04033804,2479.1,2478.1,0.04034435]
[1746983310868,0.1873651,2479.1,2478.1,0.04034435]
[1746983311044,0.1873651,2479.1,2478.1,11.506]
[1746983311244,0.04033804,2479.1,2478.1,6.4579]
[1746983311442,0.7802,2479.2,2478.1,6.4579]
[1746983311443,0.14041756,2479.0,2478.2,8.0]
[1746983311641,0.7802,2479.2,2478.3,0.04033792]
[1746983312251,0.7802,2479.8,2478.3,0.04033792]
[1746983312457,0.14041756,2479.7,2478.3,0.04033792]
[1746983312664,0.82053804,2479.8,2478.3,1.91792171]
[1746983312879,0.14041756,2479.7,2478.3,1.91792171]
[1746983313577,0.1807556,2479.7,2478.3,1.91792171]
[1746983313879,0.04033804,2479.7,2478.3,1.91792171]
[1746983314253,0.14041756,2479.6,2478.3,1.91792171]
[1746983314460,0.7802,2479.8,2478.4,1.77015217]
[1746983314785,4.21358675,2479.7,2478.4,1.77015217]
[1746983314959,4.03294385,2479.6,2478.5,3.506]
[1746983315154,0.7934,2479.4,2478.5,3.506]
[1746983315366,0.04033804,2479.3,2478.5,3.506]
[1746983315569,0.13277615,2479.2,2478.5,3.506]
[1746983316448,0.04033804,2479.3,2478.4,8.0]
[1746983316649,0.13277615,2479.2,2478.5,3.506]
[1746983316859,0.04033804,2479.3,2478.5,3.506]
[1746983317061,0.13277615,2479.2,2478.5,3.506]
[1746983317260,0.04033804,2479.3,2478.5,3.506]
[1746983317461,0.13109869,2479.2,2478.6,8.0]
[1746983317681,0.04033804,2479.3,2478.6,8.0]
[1746983317883,0.13109869,2479.1,2478.6,8.0]
[1746983318086,0.04033804,2479.3,2478.5,3.506]
[1746983318304,0.13109869,2479.0,2478.5,3.506]
[1746983318487,0.83373804,2478.9,2478.5,3.506]
[1746983318783,0.96449132,2478.9,2478.5,3.506]
[1746983320074,0.96449132,2478.9,2478.4,8.0]
[1746983320692,0.96449132,2478.9,2478.2,8.0]
[1746983321157,0.96449132,2478.9,2478.0,14.509]
[1746983321361,0.83373804,2478.9,2478.1,0.04035356]
[1746983321592,0.12779204,2478.8,2478.1,8.0]
[1746983321791,0.04033804,2478.7,2477.7,11.506]
[1746983322394,0.12779204,2478.6,2477.7,11.506]
[1746983322797,0.04033804,2478.7,2477.7,11.506]
[1746983322798,0.04033804,2478.8,2477.7,11.506]
[1746983322993,0.12779204,2478.7,2477.8,2.0836]
[1746983323762,0.12779204,2478.7,2477.9,3.506]
[1746983324460,0.12779204,2478.7,2478.0,0.04034901]
[1746983325291,0.12779204,2478.7,2478.1,8.0]
[1746983326481,0.04033804,2478.8,2478.1,8.04034901]
[1746983326965,0.12779204,2478.7,2478.1,8.04034901]
[1746983328879,0.12779204,2478.7,2478.1,13.92534901]
[1746983329089,0.7934,2478.9,2478.2,5.885]
[1746983329395,0.8325,2479.4,2478.3,0.04034264]
[1746983329788,0.12779204,2479.3,2478.3,0.04034264]
[1746983330024,0.8325,2479.4,2478.4,0.6]
[1746983330173,0.12779204,2479.3,2478.6,8.0]
[1746983330374,0.8325,2479.4,2478.8,8.0]
[1746983330701,0.12779204,2479.3,2478.8,8.0]
[1746983330891,0.12779204,2479.3,2478.9,0.04033631]
[1746983331088,0.12779204,2479.3,2478.8,8.0]
[1746983331501,0.12779204,2479.3,2478.9,0.04033631]
[1746983333523,0.12779204,2479.3,2478.9,1.19506994]
[1746983333671,0.8325,2479.7,2478.9,1.19506994]
[1746983333872,0.17133767,2479.6,2478.8,8.0]
[1746983334300,0.17133767,2479.6,2478.6,8.0]
[1746983334494,0.17133767,2479.6,2478.8,3.506]
[1746983334720,0.17133767,2479.6,2478.9,0.04033633]
[1746983335342,0.17133767,2479.6,2478.8,4.106]
[1746983335644,0.66986111,2479.6,2478.8,4.106]
[1746983336640,0.66986111,2479.6,2478.9,0.04033633]
[1746983336991,0.13099963,2479.6,2478.9,0.04033633]
[1746983337596,0.04033804,2479.5,2478.8,3.381]
[1746983338745,0.13470057,2479.4,2478.8,3.381]
[1746983339095,0.04033804,2479.6,2478.8,3.381]
[1746983339295,0.13470057,2479.3,2478.9,0.04033638]
[1746983339490,0.04033804,2479.6,2478.9,1.16293364]
[1746983339736,0.8351,2480.1,2478.9,1.2032663]
[1746983340149,0.17484129,2480.0,2478.9,1.2032663]
[1746983340645,0.17484129,2480.0,2478.9,9.2032663]
[1746983340862,0.04033804,2480.0,2478.9,8.0]
[1746983341054,0.13548982,2479.9,2478.9,8.0]
[1746983341357,3.9813967,2479.5,2478.7,3.381]
[1746983341515,0.04033804,2479.4,2478.7,3.381]
[1746983341843,0.8301,2479.3,2478.7,3.381]
[1746983341999,0.04033804,2479.2,2478.8,8.0]
[1746983342436,0.1358844,2479.1,2478.8,8.0]
[1746983343236,0.1358844,2479.1,2478.7,3.381]
[1746983343440,0.1358844,2479.1,2478.3,14.514]